[Event "Queens Festival Final Team 2022"]
[Site "Tornelo"]
[Date "2022.06.26"]
[Round "10.2"]
[White "Krush, Irina"]
[Black "Ismayil, Malak"]
[Result "1-0"]
[ECO "E32"]
[WhiteElo "2430"]
[BlackElo "2001"]
[Annotator "TA"]
[PlyCount "111"]
[EventDate "2022.06.24"]
[EventType "team-tourn"]
[EventCountry "NET"]
[SourceTitle "playchess.com"]
[Source "ChessBase"]
[SourceQuality "1"]
[WhiteTeam "United States"]
[BlackTeam "Azerbaijan"]
[WhiteTeamCountry "USA"]
[BlackTeamCountry "AZE"]
[TimeControl "180+2"]

{[%evp 14,110,8,0,16,6,11,0,31,33,47,41,72,63,85,85,89,70,110,94,101,80,114,52,60,84,62,64,108,81,234,229,231,218,215,218,306,282,320,320,316,315,291,275,715,706,707,690,720,718,770,778,814,816,867,858,1156,1065,1111,920,1753,1693,2348,2143,2864,2802,3229,2862,5954,5275,29988,29989,29990,29990,29991,29991,29991,29989,29991,29992,29992,29991,29991,29990,29991,29991,29992,29993,29993,29994,29995,29996,29997,29998,29998,29998,29998,29998,29999]} 1. d4 {[%emt 0:00:02]} Nf6 {[%emt 0:00:05]} 2. c4 {[%emt 0:00:03]} e6 {[%emt 0:00:01]} 3. Nc3 {[%emt 0:00:04]} Bb4 {[%emt 0:00:02]} 4. Qc2 {[%emt 0:00:01]} O-O {[%emt 0:00:02]} 5. a3 {[%emt 0:00:01]} Bxc3+ {[%emt 0:00:02]} 6. Qxc3 {[%emt 0:00:01]} b6 {[%emt 0:00:02] 6...d5 is the modern continuation.} 7. Bg5 {[%emt 0:00:02]} Bb7 {[%emt 0:00:01]} 8. e3 {[%emt 0:00:00]} d6 {[%emt 0:00:02] E32: Nimzo-Indian: Classical (4 Qc2): 4...0-0.} 9. Ne2 {[%emt 0:00:02]} Nbd7 {[%emt 0:00:01]} 10. Qc2 {[%emt 0:00:01]} Qe8 {[%emt 0:00:03] The position is equal.} 11. Nc3 {[%emt 0:00:04] Inhibits Ne4.} h6 {[%emt 0:00:02]} 12. Bh4 {[%emt 0:00:02]} e5 {[%emt 0:00:04] [#]} 13. d5 $146 {[%emt 0:00:01]} ({Predecessor:} 13. O-O-O exd4 14. exd4 Kh8 15. f3 Qe7 16. Re1 Qd8 17. Be2 Re8 18. Rhg1 Nf8 19. g4 {1-0 (27) Sasata,R (2286)-Timmerman,B (1524) Calgary 2016}) 13... a5 {[%emt 0:00:14]} 14. Rd1 {[%emt 0:00:09]} Nh7 {[%emt 0:00:06]} 15. e4 {[%emt 0:00:10] White is more active.} g6 {[%emt 0:00:11]} 16. Be2 {[%emt 0:00:09]} f5 {[%emt 0:00:03]} 17. f3 {[%emt 0:00:06]} Qf7 {[%emt 0:00:08]} 18. O-O {[%emt 0:00:03]} ({White should try} 18. exf5 $16 gxf5 19. O-O) 18... g5 $14 {[%emt 0:00:04]} 19. Bf2 {[%emt 0:00:01]} f4 {[%emt 0:00:02]} 20. b4 {[%emt 0:00:02][%cal Oc4c5,Bb2b4,Bb4c5,Bc5c6][%mdl 32]} Nhf6 {[%emt 0:00:06]} 21. Nb5 {[%emt 0:00:07] Strongly threatening c5.} Rac8 $2 {[%emt 0:00:25] [#] A mistake that costs the game.} (21... Rfc8 $16 {keeps fighting.}) 22. c5 $1 $18 {[%emt 0:00:03]} bxc5 {[%emt 0:00:04]} 23. bxc5 {[%emt 0:00:01] c6 is the strong threat.} Ba6 {[%emt 0:00:11]} 24. c6 {[%emt 0:00:13] Threatens to win with Nxd6.} Nb8 {[%emt 0:00:08]} (24... Bxb5 $142 25. Bxb5 Rb8) 25. Rb1 {[%emt 0:00:08]} h5 {[%emt 0:00:19]} 26. a4 {[%emt 0:00:08]} g4 {[%emt 0:00:07]} 27. Bh4 {[%emt 0:00:02]} Qg6 {[%emt 0:00:03]} 28. Rb3 {[%emt 0:00:09]} Nxd5 $2 {[%emt 0:00:05]} (28... Rf7 29. Qc3 gxf3 30. Bxf3 (30. Qxf3 Ng4 $18) 30... Ng4) 29. Bc4 {[%emt 0:00:12][%mdl 64] [#] Pin} Kh7 {[%emt 0:00:07]} 30. Bxd5 {[%emt 0:00:03]} Qg7 {[%emt 0:00:10]} 31. Rfb1 {[%emt 0:00:07]} Kh8 {[%emt 0:00:13]} 32. Qd2 {[%emt 0:00:04]} Rce8 {[%emt 0:00:14]} 33. Qxa5 {[%emt 0:00:06]} Bxb5 {[%emt 0:00:03]} 34. axb5 {[%emt 0:00:07]} Rg8 {[%emt 0:00:07]} 35. Bxg8 {[%emt 0:00:03]} Rxg8 {[%emt 0:00:01]} 36. Qd2 {[%emt 0:00:04]} d5 {[%emt 0:00:07]} 37. exd5 {[%emt 0:00:06]} e4 {[%emt 0:00:07]} 38. fxe4 {[%emt 0:00:02]} f3 {[%emt 0:00:02]} 39. Qb2 {[%emt 0:00:10]} Kh7 {[%emt 0:00:05]} 40. Qxg7+ {[%emt 0:00:02]} Rxg7 {[%emt 0:00:01]} 41. Ra1 {[%emt 0:00:02]} fxg2 {[%emt 0:00:02]} 42. Kxg2 {[%emt 0:00:02] White mates.} Rf7 {[%emt 0:00:08]} 43. Ra8 {[%emt 0:00:05]} Rf4 {[%emt 0:00:01]} 44. Rxb8 {[%emt 0:00:06]} Rxe4 {[%emt 0:00:02]} 45. Rc8 {[%emt 0:00:01]} Rd4 {[%emt 0:00:03]} 46. Rxc7+ {[%emt 0:00:02]} Kg6 {[%emt 0:00:01]} 47. Rd7 {[%emt 0:00:08]} Rd2+ {[%emt 0:00:04]} 48. Bf2 {[%emt 0:00:01]} h4 {[%emt 0:00:03]} 49. b6 {[%emt 0:00:03]} h3+ {[%emt 0:00:04]} 50. Kg3 {[%emt 0:00:01]} Kf5 {[%emt 0:00:01]} 51. b7 {[%emt 0:00:04]} Kg5 {[%emt 0:00:10]} 52. b8=Q {[%emt 0:00:04]} Rxd5 {[%emt 0:00:04]} 53. Rxd5+ {[%emt 0:00:03]} Kf6 {[%emt 0:00:01]} 54. Qe5+ {[%emt 0:00:03]} Kf7 {[%emt 0:00:02]} 55. Rd7+ {[%emt 0:00:01]} Kf8 {[%emt 0:00:01]} 56. Rb8# {[%emt 0:00:02] Weighted Error Value: White=0.09 (flawless) /Black=0.55} 1-0

[Event "Queens Festival Final Team 2022"]
[Site "Tornelo"]
[Date "2022.06.26"]
[Round "10.2"]
[White "Mammadova, Aysel"]
[Black "Bian, Erin"]
[Result "0-1"]
[ECO "C50"]
[WhiteElo "1893"]
[BlackElo "1811"]
[Annotator "NA RC"]
[PlyCount "174"]
[EventDate "2022.06.24"]
[EventType "team-tourn"]
[EventCountry "NET"]
[SourceTitle "playchess.com"]
[Source "ChessBase"]
[SourceQuality "1"]
[WhiteTeam "Azerbaijan"]
[BlackTeam "United States"]
[WhiteTeamCountry "AZE"]
[BlackTeamCountry "USA"]
[TimeControl "180+2"]

1. e4 {[%emt 0:00:02]} e5 {[%emt 0:00:04]} 2. Nf3 {[%emt 0:00:03]} Nc6 {[%emt 0:00:02]} 3. Bc4 {[%emt 0:00:02]} Bc5 {[%emt 0:00:02]} 4. O-O {[%emt 0:00:04]} Nf6 {[%emt 0:00:01]} 5. d4 {[%emt 0:00:01]} Bxd4 {[%emt 0:00:01]} 6. Nxd4 {[%emt 0:00:02]} Nxd4 {[%emt 0:00:01]} 7. Bg5 {[%emt 0:00:02]} d6 {[%emt 0:00:04]} 8. f4 {[%emt 0:00:03]} Qe7 {[%emt 0:00:02]} 9. Nc3 {[%emt 0:00:18]} Be6 {[%emt 0:00:08]} 10. Nd5 {[%emt 0:00:29]} Bxd5 {[%emt 0:00:03]} 11. exd5 {[%emt 0:00:02]} b5 {[%emt 0:00:37]} 12. fxe5 {[%emt 0:00:07]} dxe5 {[%emt 0:00:05]} 13. Bd3 {[%emt 0:00:15]} Qc5 {[%emt 0:00:08]} 14. Kh1 {[%emt 0:00:05]} Nxd5 {[%emt 0:00:02]} 15. c3 {[%emt 0:00:04]} Ne6 {[%emt 0:00:02]} 16. Bh4 {[%emt 0:00:06]} Nef4 {[%emt 0:00:17]} 17. b4 {[%emt 0:00:06]} Qb6 {[%emt 0:00:18]} 18. Be4 {[%emt 0:00:03]} c6 {[%emt 0:00:05]} 19. g3 {[%emt 0:00:12]} Nxc3 {[%emt 0:00:08]} 20. Qf3 {[%emt 0:00:06]} Nxe4 {[%emt 0:00:06]} 21. Qxe4 {[%emt 0:00:19]} Ng6 {[%emt 0:00:03]} 22. Rac1 {[%emt 0:00:07]} Rc8 {[%emt 0:00:06]} 23. Qf5 {[%emt 0:00:05]} O-O {[%emt 0:00:04]} 24. Bg5 {[%emt 0:00:03]} h6 {[%emt 0:00:04]} 25. Bd2 {[%emt 0:00:03]} Qd4 {[%emt 0:00:05]} 26. Bc3 {[%emt 0:00:04]} Qd5+ {[%emt 0:00:03]} 27. Kg1 {[%emt 0:00:02]} Qxa2 {[%emt 0:00:07]} 28. Bxe5 {[%emt 0:00:07]} Nxe5 {[%emt 0:00:13]} 29. Qxe5 {[%emt 0:00:03]} Rfe8 {[%emt 0:00:03]} 30. Qf5 {[%emt 0:00:09]} Rc7 {[%emt 0:00:09]} 31. Rf2 {[%emt 0:00:04]} Qb3 {[%emt 0:00:08]} 32. Qg4 {[%emt 0:00:03]} Qe3 {[%emt 0:00:12]} 33. Rcf1 {[%emt 0:00:03]} Rce7 {[%emt 0:00:04]} 34. Qh5 {[%emt 0:00:10]} Qe6 {[%emt 0:00:10]} 35. Qf3 {[%emt 0:00:07]} Qd6 {[%emt 0:00:05]} 36. Qc3 {[%emt 0:00:04]} Re3 {[%emt 0:00:05]} 37. Qc2 {[%emt 0:00:04]} R8e7 {[%emt 0:00:05]} 38. Qf5 {[%emt 0:00:02]} Qe6 {[%emt 0:00:02]} 39. Qf4 {[%emt 0:00:02]} Qe5 {[%emt 0:00:03]} 40. Qxe5 {[%emt 0:00:04]} R3xe5 {[%emt 0:00:02]} 41. Ra2 {[%emt 0:00:03]} Re4 {[%emt 0:00:01]} 42. Rfa1 {[%emt 0:00:04]} Rxb4 {[%emt 0:00:02]} 43. Rc1 {[%emt 0:00:02]} Rc7 {[%emt 0:00:03]} 44. Ra6 {[%emt 0:00:04]} Rc4 {[%emt 0:00:05]} 45. Rxc4 {[%emt 0:00:03]} bxc4 {[%emt 0:00:01]} 46. Kf2 {[%emt 0:00:01]} c3 {[%emt 0:00:02]} 47. Ke3 {[%emt 0:00:03]} c5 {[%emt 0:00:02]} 48. Kd3 {[%emt 0:00:02]} c4+ {[%emt 0:00:01]} 49. Kxc3 {[%emt 0:00:01]} g6 {[%emt 0:00:00]} 50. h4 {[%emt 0:00:04]} Kg7 {[%emt 0:00:02]} 51. g4 {[%emt 0:00:02]} g5 {[%emt 0:00:04]} 52. h5 {[%emt 0:00:02]} f6 {[%emt 0:00:02]} 53. Ra5 {[%emt 0:00:03]} Kf7 {[%emt 0:00:02]} 54. Ra6 {[%emt 0:00:02]} Ke7 {[%emt 0:00:01]} 55. Ra5 {[%emt 0:00:03]} Ke6 {[%emt 0:00:01]} 56. Rb5 {[%emt 0:00:02]} a6 {[%emt 0:00:02]} 57. Rb6+ {[%emt 0:00:02]} Ke5 {[%emt 0:00:02]} 58. Rxa6 {[%emt 0:00:02]} Rc8 {[%emt 0:00:03]} 59. Rb6 {[%emt 0:00:02]} f5 {[%emt 0:00:08]} 60. gxf5 {[%emt 0:00:04]} Kxf5 {[%emt 0:00:01]} 61. Rxh6 {[%emt 0:00:02]} g4 {[%emt 0:00:01]} 62. Rg6 {[%emt 0:00:03]} Kf4 {[%emt 0:00:02]} 63. h6 {[%emt 0:00:03]} g3 {[%emt 0:00:01]} 64. h7 {[%emt 0:00:02]} Rh8 {[%emt 0:00:02]} 65. Rg7 {[%emt 0:00:01]} Kf3 {[%emt 0:00:02]} 66. Kxc4 {[%emt 0:00:02]} g2 {[%emt 0:00:02]} 67. Kd3 {[%emt 0:00:02]} Kf2 {[%emt 0:00:02]} 68. Rf7+ {[%emt 0:00:03]} Kg1 {[%emt 0:00:01]} 69. Ke2 {[%emt 0:00:04]} Kh1 {[%emt 0:00:02]} 70. Rg7 {[%emt 0:00:01]} g1=Q {[%emt 0:00:02]} 71. Rxg1+ {[%emt 0:00:03]} Kxg1 {[%emt 0:00:01]} 72. Kf3 {[%emt 0:00:01]} Rxh7 {[%emt 0:00:01]} 73. Kg4 {[%emt 0:00:03]} Rf7 {[%emt 0:00:01]} 74. Kg5 {[%emt 0:00:01]} Kf2 {[%emt 0:00:01]} 75. Kg6 {[%emt 0:00:02]} Rf3 {[%emt 0:00:01]} 76. Kg5 {[%emt 0:00:02]} Ke3 {[%emt 0:00:01]} 77. Kg4 {[%emt 0:00:02]} Ke4 {[%emt 0:00:01]} 78. Kg5 {[%emt 0:00:01]} Rf4 {[%emt 0:00:01]} 79. Kg6 {[%emt 0:00:02]} Rf5 {[%emt 0:00:01]} 80. Kh6 {[%emt 0:00:02]} Ke5 {[%emt 0:00:01]} 81. Kg6 {[%emt 0:00:02]} Ke6 {[%emt 0:00:01]} 82. Kh6 {[%emt 0:00:02]} Kf6 {[%emt 0:00:01]} 83. Kh7 {[%emt 0:00:01]} Rg5 {[%emt 0:00:01]} 84. Kh8 {[%emt 0:00:03]} Rg1 {[%emt 0:00:02]} 85. Kh7 {[%emt 0:00:02]} Rg2 {[%emt 0:00:02]} 86. Kh8 {[%emt 0:00:02]} Kf7 {[%emt 0:00:00]} 87. Kh7 {[%emt 0:00:02]} Rh2# {[%emt 0:00:01]} 0-1

[Event "Queens Festival Final Team 2022"]
[Site "Tornelo"]
[Date "2022.06.26"]
[Round "10.2"]
[White "Yellamraju, Aparna"]
[Black "Khalilova, Khadija"]
[Result "0-1"]
[ECO "D78"]
[WhiteElo "1720"]
[BlackElo "1777"]
[Annotator "NA RC"]
[PlyCount "130"]
[EventDate "2022.06.24"]
[EventType "team-tourn"]
[EventCountry "NET"]
[SourceTitle "playchess.com"]
[Source "ChessBase"]
[SourceQuality "1"]
[WhiteTeam "United States"]
[BlackTeam "Azerbaijan"]
[WhiteTeamCountry "USA"]
[BlackTeamCountry "AZE"]
[TimeControl "180+2"]

1. d4 {[%emt 0:00:02]} d5 {[%emt 0:00:04]} 2. c4 {[%emt 0:00:02]} e6 {[%emt 0:00:02]} 3. Nf3 {[%emt 0:00:01]} Nf6 {[%emt 0:00:03]} 4. g3 {[%emt 0:00:03]} g6 {[%emt 0:00:02]} 5. Bg2 {[%emt 0:00:02]} Bg7 {[%emt 0:00:02]} 6. O-O {[%emt 0:00:02]} O-O {[%emt 0:00:02]} 7. Qc2 {[%emt 0:00:02]} Nbd7 {[%emt 0:00:09]} 8. Nbd2 {[%emt 0:00:03]} c6 {[%emt 0:00:16]} 9. b3 {[%emt 0:00:03]} Re8 {[%emt 0:00:03]} 10. Bb2 {[%emt 0:00:02]} b6 {[%emt 0:00:03]} 11. e4 {[%emt 0:00:05]} dxe4 {[%emt 0:00:06]} 12. Nxe4 {[%emt 0:00:02]} Nxe4 {[%emt 0:00:02]} 13. Qxe4 {[%emt 0:00:01]} Bb7 {[%emt 0:00:02]} 14. Rad1 {[%emt 0:00:26]} Qc8 {[%emt 0:00:02]} 15. Ng5 {[%emt 0:00:12]} Rb8 {[%emt 0:00:12]} 16. Qf4 {[%emt 0:00:06]} Rf8 {[%emt 0:00:16]} 17. h4 {[%emt 0:00:10]} c5 {[%emt 0:00:14]} 18. Bxb7 {[%emt 0:00:05]} Rxb7 {[%emt 0:00:05]} 19. Ne4 {[%emt 0:00:09]} Rb8 {[%emt 0:00:33]} 20. Ba1 {[%emt 0:00:05]} cxd4 {[%emt 0:00:03]} 21. Nd6 {[%emt 0:00:33]} Qc6 {[%emt 0:00:04]} 22. Nb5 {[%emt 0:00:20]} e5 {[%emt 0:00:08]} 23. Qg4 {[%emt 0:00:08]} a6 {[%emt 0:00:05]} 24. Na3 {[%emt 0:00:11]} Nf6 {[%emt 0:00:07]} 25. Qh3 {[%emt 0:00:01]} Rfe8 {[%emt 0:00:04]} 26. Nc2 {[%emt 0:00:02]} Rbd8 {[%emt 0:00:03]} 27. Nb4 {[%emt 0:00:04]} Qb7 {[%emt 0:00:03]} 28. Qg2 {[%emt 0:00:08]} Qxg2+ {[%emt 0:00:05]} 29. Kxg2 {[%emt 0:00:01]} a5 {[%emt 0:00:02]} 30. Nd3 {[%emt 0:00:05]} e4 {[%emt 0:00:04]} 31. Nf4 {[%emt 0:00:02]} d3 {[%emt 0:00:04]} 32. Bxf6 {[%emt 0:00:07]} Bxf6 {[%emt 0:00:03]} 33. Nd5 {[%emt 0:00:02]} Bd4 {[%emt 0:00:02]} 34. Rfe1 {[%emt 0:00:02]} Kg7 {[%emt 0:00:03]} 35. Nf4 {[%emt 0:00:15]} Bc3 {[%emt 0:00:07]} 36. Re3 {[%emt 0:00:06]} h6 {[%emt 0:00:03]} 37. Nd5 {[%emt 0:00:03]} Bd4 {[%emt 0:00:02]} 38. Ree1 {[%emt 0:00:01]} f5 {[%emt 0:00:03]} 39. Kf1 {[%emt 0:00:01]} g5 {[%emt 0:00:02]} 40. hxg5 {[%emt 0:00:02]} hxg5 {[%emt 0:00:02]} 41. Kg2 {[%emt 0:00:01]} Kg6 {[%emt 0:00:02]} 42. Rh1 {[%emt 0:00:02]} Rh8 {[%emt 0:00:05]} 43. Ne7+ {[%emt 0:00:07]} Kf6 {[%emt 0:00:04]} 44. Nd5+ {[%emt 0:00:02]} Ke5 {[%emt 0:00:04]} 45. Rxh8 {[%emt 0:00:11]} Rxh8 {[%emt 0:00:02]} 46. Rd2 {[%emt 0:00:03]} f4 {[%emt 0:00:02]} 47. gxf4+ {[%emt 0:00:01]} gxf4 {[%emt 0:00:02]} 48. Rd1 {[%emt 0:00:02]} Rg8+ {[%emt 0:00:03]} 49. Kf1 {[%emt 0:00:02]} f3 {[%emt 0:00:05]} 50. a3 {[%emt 0:00:02]} Rh8 {[%emt 0:00:02]} 51. Kg1 {[%emt 0:00:01]} Rc8 {[%emt 0:00:05]} 52. Kf1 {[%emt 0:00:02]} b5 {[%emt 0:00:03]} 53. Rc1 {[%emt 0:00:03]} Bb2 {[%emt 0:00:04]} 54. Rb1 {[%emt 0:00:02]} Bxa3 {[%emt 0:00:02]} 55. Ra1 {[%emt 0:00:02]} Bb4 {[%emt 0:00:03]} 56. Nxb4 {[%emt 0:00:03]} axb4 {[%emt 0:00:01]} 57. cxb5 {[%emt 0:00:01]} Kd4 {[%emt 0:00:03]} 58. Ke1 {[%emt 0:00:01]} Rb8 {[%emt 0:00:02]} 59. Ra5 {[%emt 0:00:04]} Kc3 {[%emt 0:00:03]} 60. b6 {[%emt 0:00:03]} Rxb6 {[%emt 0:00:03]} 61. Kd1 {[%emt 0:00:02]} Kxb3 {[%emt 0:00:04]} 62. Re5 {[%emt 0:00:01]} Kc3 {[%emt 0:00:01]} 63. Rxe4 {[%emt 0:00:01]} Ra6 {[%emt 0:00:04]} 64. Rxb4 {[%emt 0:00:10]} Ra1+ {[%emt 0:00:02]} 65. Rb1 {[%emt 0:00:02]} Rxb1# {[%emt 0:00:02]} 0-1

[Event "Queens Festival Final Team 2022"]
[Site "Tornelo"]
[Date "2022.06.26"]
[Round "10.3"]
[White "Alboredo, Julia"]
[Black "Shriyan santosh Priyasha"]
[Result "1-0"]
[ECO "B06"]
[WhiteElo "2252"]
[BlackElo "1597"]
[Annotator "TA"]
[PlyCount "49"]
[EventDate "2022.06.24"]
[EventType "team-tourn"]
[EventCountry "NET"]
[SourceTitle "playchess.com"]
[Source "ChessBase"]
[SourceQuality "1"]
[WhiteTeam "Brazil"]
[BlackTeam "MAW"]
[WhiteTeamCountry "BRA"]
[TimeControl "180+2"]

{[%evp 13,48,29,46,30,75,73,66,20,124,104,125,127,213,180,217,-27,27,2,95,92,256,245,330,327,577,531,1628,1615,1861,1802,3026,2662,29990,29989,29991,29990,29999]} 1. e4 {[%emt 0:00:02]} g6 {[%emt 0:00:04]} 2. d4 {[%emt 0:00:03]} Bg7 {[%emt 0:00:01]} 3. Nc3 {[%emt 0:00:01]} d6 {[%emt 0:00:02]} 4. f3 {[%emt 0:00:02]} Nd7 {[%emt 0:00:04]} 5. Be3 {[%emt 0:00:02]} a6 {[%emt 0:00:01]} 6. Qd2 {[%emt 0:00:02]} b5 {[%emt 0:00:02]} 7. g4 {[%emt 0:00:05]} Bb7 {[%emt 0:00:02]} 8. h4 {[%emt 0:00:02] B06: Modern Defence.} Rc8 {[%emt 0:00:03]} 9. O-O-O {[%emt 0:00:04] White is more active.} c5 {[%emt 0:00:02]} 10. h5 {[%emt 0:00:06]} (10. Kb1 $14 {feels stronger.}) 10... b4 {[%emt 0:00:17]} (10... g5 $1 $11 {remains equal.}) 11. Nce2 $1 $16 {[%emt 0:00:18]} Qa5 {[%emt 0:00:16]} 12. Kb1 {[%emt 0:00:05]} c4 {[%emt 0:00:11]} (12... Nb6 $16) 13. h6 $36 {[%emt 0:00:03][%mdl 2048] Black is under strong pressure.} Bf8 {[%emt 0:00:11] [#]} 14. Nc1 $146 {[%emt 0:00:07]} (14. d5 $18) ({Predecessor:} 14. c3 bxc3 15. Nxc3 e6 16. d5 e5 17. g5 Nb6 18. Bh3 Rb8 19. f4 f6 20. Nf3 {1-0 (46) Burrows,M (2186)-Harley Yeo,G (2053) Uxbridge 2010}) 14... c3 {[%emt 0:00:21]} (14... d5 $142 $1) 15. Qf2 {[%emt 0:00:05] aiming for Nb3.} cxb2 {[%emt 0:00:08] [#]} (15... d5 $1 $11) 16. Nb3 $1 {[%emt 0:00:03]} Qa3 {[%emt 0:00:20] [#] Black cannot hold the game after this.} (16... Qc7 $16) 17. d5 $1 $18 {[%emt 0:00:06] And now Bd4 would win.} a5 {[%emt 0:00:29]} 18. Bd4 {[%emt 0:00:01][%csl LRb2,LRh8]} f6 $2 {[%emt 0:00:32]} (18... a4 19. Bxb2 (19. Bxh8 $2 {perishes.} axb3 20. Bxb2 Qxa2+ 21. Kc1 Bxh6+ 22. Rxh6 bxc2 $19) 19... axb3 20. cxb3 (20. axb3 Qa5 $16) 20... Qa8) 19. Bb5 {[%emt 0:00:05]} Rc3 {[%emt 0:00:20]} 20. Bxc3 {[%emt 0:00:06]} bxc3 {[%emt 0:00:00]} 21. Qa7 {[%emt 0:00:16][%csl LRa5,LRb7]} Bc8 {[%emt 0:00:06]} 22. Qc7 {[%emt 0:00:02]} a4 {[%emt 0:00:06]} 23. Qxc8+ {[%emt 0:00:02] White mates.} Kf7 {[%emt 0:00:01]} 24. Bxd7 {[%emt 0:00:04][%csl Gc8,Gd5][%cal Rd7e6]} g5 {[%emt 0:00:04]} 25. Qe8# {[%emt 0:00:04] Weighted Error Value: White=0.31/Black=1.14} 1-0

[Event "Queens Festival Final Team 2022"]
[Site "Tornelo"]
[Date "2022.06.26"]
[Round "10.3"]
[White "Bucci, Andrea Vidigal"]
[Black "Nkhoma, Desiderata"]
[Result "1-0"]
[ECO "B72"]
[WhiteElo "1769"]
[BlackElo "1465"]
[Annotator "NA"]
[PlyCount "73"]
[EventDate "2022.06.24"]
[EventType "team-tourn"]
[EventCountry "NET"]
[SourceTitle "playchess.com"]
[Source "ChessBase"]
[SourceQuality "1"]
[WhiteTeam "Brazil"]
[BlackTeam "MAW"]
[WhiteTeamCountry "BRA"]
[TimeControl "180+2"]

1. e4 {[%emt 0:00:02]} c5 {[%emt 0:00:08]} 2. Nf3 {[%emt 0:00:02]} d6 {[%emt 0:00:02]} 3. d4 {[%emt 0:00:02]} cxd4 {[%emt 0:00:04]} 4. Nxd4 {[%emt 0:00:00]} Nf6 {[%emt 0:00:06]} 5. Nc3 {[%emt 0:00:01]} g6 {[%emt 0:00:08]} 6. Be3 {[%emt 0:00:03]} Bg7 {[%emt 0:00:04]} 7. Qd2 {[%emt 0:00:01]} O-O {[%emt 0:00:05]} 8. Bc4 {[%emt 0:00:03]} Nc6 {[%emt 0:00:05]} 9. O-O {[%emt 0:00:02]} Nxd4 {[%emt 0:00:03]} 10. Bxd4 {[%emt 0:00:02]} e5 {[%emt 0:00:03]} 11. Be3 {[%emt 0:00:01]} b6 {[%emt 0:00:06]} 12. Rad1 {[%emt 0:00:04]} Bb7 {[%emt 0:00:09]} 13. f3 {[%emt 0:00:09]} Rc8 {[%emt 0:00:02]} 14. Bb3 {[%emt 0:00:03]} Re8 {[%emt 0:00:09]} 15. Qxd6 {[%emt 0:00:03]} Qxd6 {[%emt 0:00:07]} 16. Rxd6 {[%emt 0:00:00]} Rcd8 {[%emt 0:00:17]} 17. Rfd1 {[%emt 0:00:06]} Rxd6 {[%emt 0:00:08]} 18. Rxd6 {[%emt 0:00:02]} Bf8 {[%emt 0:00:02]} 19. Rd1 {[%emt 0:00:06]} Bc6 {[%emt 0:00:04]} 20. Nd5 {[%emt 0:00:15]} Nd7 {[%emt 0:00:06]} 21. Nb4 {[%emt 0:00:07]} Nc5 {[%emt 0:00:05]} 22. Nxc6 {[%emt 0:00:07]} Nxb3 {[%emt 0:00:11]} 23. axb3 {[%emt 0:00:13]} Rc8 {[%emt 0:00:06]} 24. Nxe5 {[%emt 0:00:05]} Rxc2 {[%emt 0:00:04]} 25. Rd2 {[%emt 0:00:10]} Rc1+ {[%emt 0:00:07]} 26. Kf2 {[%emt 0:00:01]} Bb4 {[%emt 0:00:07]} 27. Re2 {[%emt 0:00:10]} Kg7 {[%emt 0:00:15]} 28. Bxc1 {[%emt 0:00:03]} Bc5+ {[%emt 0:00:08]} 29. Be3 {[%emt 0:00:03]} Bxe3+ {[%emt 0:00:07]} 30. Kxe3 {[%emt 0:00:00]} Kf6 {[%emt 0:00:06]} 31. Nc6 {[%emt 0:00:02]} a6 {[%emt 0:00:04]} 32. e5+ {[%emt 0:00:04]} Ke6 {[%emt 0:00:04]} 33. f4 {[%emt 0:00:04]} b5 {[%emt 0:00:05]} 34. g4 {[%emt 0:00:06]} h6 {[%emt 0:00:07]} 35. Ke4 {[%emt 0:00:04]} h5 {[%emt 0:00:05]} 36. Rd2 {[%emt 0:00:08]} hxg4 {[%emt 0:00:06]} 37. Rd6# {[%emt 0:00:02]} 1-0

[Event "Queens Festival Final Team 2022"]
[Site "Tornelo"]
[Date "2022.06.26"]
[Round "10.3"]
[White "Banda Tapiwa"]
[Black "Gomes, Maria Eduarda Papini"]
[Result "0-1"]
[ECO "B01"]
[WhiteElo "1213"]
[BlackElo "1618"]
[Annotator "NA RC"]
[PlyCount "48"]
[EventDate "2022.06.24"]
[EventType "team-tourn"]
[EventCountry "NET"]
[SourceTitle "playchess.com"]
[Source "ChessBase"]
[SourceQuality "1"]
[WhiteTeam "MAW"]
[BlackTeam "Brazil"]
[BlackTeamCountry "BRA"]
[TimeControl "180+2"]

1. e4 {[%emt 0:00:02]} d5 {[%emt 0:00:05]} 2. f3 {[%emt 0:00:04]} dxe4 {[%emt 0:00:03]} 3. fxe4 {[%emt 0:00:02]} Nc6 {[%emt 0:00:02]} 4. d3 {[%emt 0:00:04]} Nf6 {[%emt 0:00:03]} 5. Nf3 {[%emt 0:00:01]} Bg4 {[%emt 0:00:01]} 6. Be2 {[%emt 0:00:02]} e6 {[%emt 0:00:02]} 7. O-O {[%emt 0:00:09]} Bc5+ {[%emt 0:00:03]} 8. Kh1 {[%emt 0:00:02]} Bh5 {[%emt 0:00:02]} 9. c3 {[%emt 0:00:10]} e5 {[%emt 0:00:08]} 10. Bg5 {[%emt 0:00:07]} h6 {[%emt 0:00:19]} 11. Bxf6 {[%emt 0:00:02]} Qxf6 {[%emt 0:00:07]} 12. b4 {[%emt 0:00:04]} Bb6 {[%emt 0:00:06]} 13. Na3 {[%emt 0:00:14]} a6 {[%emt 0:00:08]} 14. Nc4 {[%emt 0:00:02]} Qe7 {[%emt 0:00:11]} 15. a4 {[%emt 0:00:08]} Ba7 {[%emt 0:00:03]} 16. b5 {[%emt 0:00:03]} axb5 {[%emt 0:00:07]} 17. axb5 {[%emt 0:00:01]} Bxf3 {[%emt 0:00:05]} 18. Rxf3 {[%emt 0:00:06]} Nd8 {[%emt 0:00:02]} 19. Qf1 {[%emt 0:00:07]} O-O {[%emt 0:00:05]} 20. Bd1 {[%emt 0:00:05]} f6 {[%emt 0:00:13]} 21. Bb3 {[%emt 0:00:03]} Nf7 {[%emt 0:00:02]} 22. Qf2 {[%emt 0:00:11]} Bxf2 {[%emt 0:00:03]} 23. Rxa8 {[%emt 0:00:07]} Rxa8 {[%emt 0:00:02]} 24. Rxf2 {[%emt 0:00:01]} Ra1+ {[%emt 0:00:02]} 0-1